bitfinex-derivatives/quotes_ETHF0:USTF0_20251031
["timestamp","ask_amount","ask_price","bid_price","bid_amount"]
[1761923456150,0.5168,3876.6,3875.8,3.67251]
[1761923456350,0.5168,3876.6,3875.8,3.2078]
[1761923456649,0.5168,3876.6,3875.8,3.67251]
[1761923456845,0.5168,3876.6,3875.8,3.2078]
[1761923457537,0.5168,3876.6,3875.8,3.67251]
[1761923457849,0.5168,3876.6,3875.9,0.4647]
[1761923458148,0.5168,3876.6,3875.8,3.67251]
[1761923458343,0.5168,3876.6,3875.8,3.2078]
[1761923458549,0.5168,3876.6,3876.2,3.2078]
[1761923458752,0.00183306,3877.2,3876.2,3.2078]
[1761923458753,0.00183306,3877.2,3876.8,0.8716]
[1761923459051,0.00183306,3877.2,3876.9,10.811]
[1761923459450,0.00183306,3877.2,3877.1,0.8716]
[1761923459855,0.00183306,3877.2,3877.1,1.78231397]
[1761923461051,0.00183306,3877.2,3877.1,0.8716]
[1761923461250,0.00183306,3877.2,3877.1,1.78231397]
[1761923461452,0.00183306,3877.2,3877.1,0.8716]
[1761923462246,3.2078,3878.3,3877.1,1.36425333]
[1761923462555,3.7246,3878.7,3877.9,0.46446]
[1761923462749,3.7246,3878.7,3878.0,10.763]
[1761923462945,3.7246,3878.7,3878.0,13.9708]
[1761923463147,3.7246,3878.7,3878.0,3.67224]
[1761923463455,0.00263904,3878.7,3878.1,11.66435458]
[1761923463647,0.00263904,3878.7,3878.2,11.21143]
[1761923463848,0.00263904,3878.7,3878.6,0.8716]
[1761923464248,0.51943904,3878.7,3878.6,10.748]
[1761923464544,0.00263904,3878.7,3878.6,10.748]
[1761923464852,0.00263904,3878.7,3878.6,11.6116]
[1761923465850,0.5168,3880.1,3878.7,0.3292]
[1761923466153,0.5168,3880.1,3879.2,1.37385489]
[1761923466350,0.5168,3880.1,3879.4,0.90955489]
[1761923466551,0.5168,3880.1,3879.5,13.9278]
[1761923466857,0.51933174,3880.1,3879.5,13.9278]
[1761923467054,0.00253174,3880.1,3879.9,3.2078]
[1761923467355,0.00253174,3880.1,3880.0,0.8716]
[1761923468958,3.2078,3881.1,3880.1,0.4642]
[1761923469151,3.2078,3881.1,3880.0,8.0]
[1761923469152,3.2078,3881.1,3880.5,3.2078]
[1761923469656,0.5168,3881.5,3880.5,3.2078]
[1761923469851,0.51908018,3881.5,3880.5,3.2078]
[1761923470352,0.4563,3880.8,3880.5,3.2078]
[1761923470561,0.4563,3880.8,3880.1,0.90799766]
[1761923470562,3.9789,3880.6,3879.7,3.2078]
[1761923470752,0.4563,3880.1,3879.8,8.953]
[1761923470953,0.7711,3879.8,3879.3,3.2078]
[1761923471353,0.7711,3879.8,3879.4,10.665]
[1761923472361,0.7711,3879.8,3879.5,10.659]
[1761923472769,0.7711,3879.8,3879.5,10.647]
[1761923473060,3.2078,3880.2,3880.0,0.8402]
[1761923473266,3.6641,3880.8,3879.4,0.1426]
[1761923473565,3.6641,3880.8,3879.3,3.2078]
[1761923473566,3.2078,3880.4,3879.5,3.2078]
[1761923473771,3.2078,3880.4,3879.6,10.3]
[1761923474359,3.2078,3880.0,3879.4,10.626]
[1761923474757,0.4563,3880.1,3879.5,3.2078]
[1761923474960,3.2078,3880.0,3879.1,3.2078]
[1761923475163,0.4563,3878.7,3878.2,3.2078]
[1761923475463,0.45858018,3878.7,3878.3,10.634]
[1761923475667,0.45858018,3878.7,3878.2,3.2078]
[1761923475861,0.45858018,3878.7,3878.2,10.63]
[1761923476057,0.45858018,3878.7,3878.3,3.2078]
[1761923476254,0.00228018,3878.7,3878.6,0.8402]
[1761923476655,0.00228018,3878.7,3878.3,3.2078]
[1761923476863,0.7711,3878.1,3878.0,0.00318932]
[1761923477164,3.2078,3878.5,3878.0,0.00318932]
[1761923478470,0.45858018,3878.7,3878.2,3.2078]
[1761923478858,0.7711,3878.1,3878.0,0.00318932]
[1761923479169,3.66638018,3878.7,3878.0,0.00318932]
[1761923479867,0.45858018,3878.7,3878.0,0.00318932]
[1761923480362,0.00228018,3878.7,3878.6,4.048]
[1761923480566,0.00228018,3878.7,3878.6,14.65]
[1761923481172,0.45858018,3878.7,3878.3,10.59]
[1761923481470,0.7711,3878.4,3878.0,10.60018932]
[1761923486564,0.7711,3878.1,3878.0,10.60018932]
[1761923486763,0.7711,3878.1,3878.0,0.00318932]
[1761923487668,3.66638018,3878.7,3878.0,0.00318932]
[1761923488069,0.45858018,3878.7,3878.3,0.4644]
[1761923488372,0.00228018,3878.7,3878.6,3.9345]
[1761923488569,0.00228018,3878.7,3878.6,3.2078]
[1761923488970,0.00228018,3878.7,3878.6,3.9345]
[1761923489173,0.00228018,3878.7,3878.6,4.84249766]
[1761923489368,0.00228018,3878.7,3878.6,3.9345]
[1761923489775,0.00228018,3878.7,3878.6,4.1189518]
[1761923489976,0.00228018,3878.7,3878.6,3.2078]
[1761923490176,0.78828018,3878.7,3878.4,0.9111518]
[1761923490475,0.78828018,3878.7,3878.5,10.5]
[1761923490871,0.786,3878.6,3878.5,10.5]
[1761923491072,1.2404,3878.4,3878.0,0.91434112]
[1761923491378,1.2404,3878.4,3878.1,10.488]
[1761923491571,0.00228018,3878.7,3878.1,10.488]
[1761923491778,0.00228018,3878.7,3878.6,1.6378518]
[1761923491979,0.00228018,3878.7,3878.6,12.1238518]
[1761923492372,0.00228018,3878.7,3878.6,11.2127]
[1761923495277,0.00228018,3878.7,3878.6,0.7267]
[1761923495481,0.00228018,3878.7,3878.6,11.1847]
[1761923496175,0.00228018,3878.7,3878.6,2.09440511]
[1761923496479,0.00228018,3878.7,3878.6,12.53640511]
[1761923496779,0.00228018,3878.7,3878.6,11.79470511]
[1761923497080,0.00228018,3878.7,3878.6,12.52140511]
[1761923497273,0.00228018,3878.7,3878.6,11.1537]
[1761923498182,3.6622,3879.6,3878.6,11.79470511]
[1761923498478,3.6622,3879.6,3879.2,0.68410854]
[1761923498479,0.4544,3879.6,3879.2,0.68410854]
[1761923498672,0.4544,3879.6,3879.4,0.68410854]
[1761923499077,0.746,3879.4,3879.3,0.91214472]
[1761923499274,0.4544,3879.6,3879.3,10.399]
[1761923499479,0.746,3879.5,3879.4,0.68458709]
[1761923500073,0.746,3879.5,3879.3,11.31114472]
[1761923500281,0.746,3879.4,3879.3,11.31114472]
[1761923500583,0.746,3879.3,3879.2,0.68537392]
[1761923500782,0.4544,3879.6,3879.2,10.399]
[1761923500982,0.4544,3879.6,3879.3,0.6853006]
[1761923501190,0.746,3879.4,3879.3,0.6853006]
[1761923501480,3.6622,3879.6,3879.2,10.399]
[1761923501481,3.6622,3879.6,3879.2,11.0843006]
[1761923501677,3.6332,3879.6,3879.2,11.0843006]
[1761923501886,0.746,3879.3,3879.2,11.0843006]
[1761923502385,0.746,3879.3,3879.2,11.0836169]
[1761923502778,0.746,3879.3,3879.2,0.6846169]
[1761923503177,3.6332,3879.6,3878.9,10.358]
[1761923503178,0.746,3879.2,3879.1,0.6846169]
[1761923504181,0.746,3879.2,3878.7,0.91214472]
[1761923504182,0.746,3878.8,3878.7,0.91214472]
[1761923504385,1.1714,3878.4,3878.3,0.91214472]
[1761923504777,0.746,3878.3,3878.2,0.91214472]
[1761923505483,0.746,3878.2,3878.1,0.91214472]
[1761923506483,0.746,3878.1,3878.0,0.91533404]
[1761923506688,0.746,3878.1,3878.0,0.00318932]
[1761923506885,3.6332,3878.4,3878.2,0.46441]
[1761923506886,0.4254,3878.4,3878.2,0.46441]
[1761923507189,0.746,3878.3,3878.2,1.37218168]
[1761923507374,0.746,3878.1,3878.0,0.00318932]
[1761923507579,3.9538,3878.1,3878.0,0.00318932]
[1761923507782,0.746,3878.1,3878.0,0.00318932]
[1761923508181,3.2078,3878.2,3878.0,0.00318932]
[1761923508485,0.746,3878.1,3878.0,0.00318932]
[1761923508681,0.746,3878.1,3878.0,0.91834653]
[1761923509485,0.746,3877.9,3877.8,3.7267813]
[1761923509680,0.746,3877.9,3877.2,2.27360444]
[1761923509681,3.2078,3877.9,3877.2,0.4546]
[1761923509881,0.0776,3877.8,3876.6,0.4546]
[1761923510081,0.0776,3878.0,3876.6,0.4546]
[1761923510285,3.2078,3876.7,3876.6,0.4546]
[1761923510491,3.21095134,3876.7,3876.6,0.45679986]
[1761923510680,11.76763025,3876.7,3876.6,0.45679986]
[1761923510882,3.76763025,3876.7,3876.6,0.45679986]
[1761923511282,3.21095134,3876.7,3876.6,0.45679986]
[1761923512487,3.21095134,3876.7,3876.6,1.14339986]
[1761923512990,3.21095134,3876.7,3876.6,0.45679986]
[1761923514091,11.21095134,3876.7,3876.6,0.45679986]
[1761923514496,3.21095134,3876.7,3876.6,0.45679986]
[1761923517092,0.00315134,3876.7,3876.6,1.14339986]
[1761923517488,3.2078,3877.1,3876.6,1.14339986]
[1761923519097,3.2078,3877.1,3877.0,0.6866]
[1761923520394,3.2078,3877.6,3877.3,0.4546]
[1761923522597,3.2078,3878.0,3877.5,0.6866]
[1761923523097,3.2078,3878.4,3877.9,0.6866]
[1761923523395,3.2078,3878.4,3878.0,0.4546]
[1761923525096,3.2078,3878.9,3878.7,0.4546]
[1761923525793,8.2781184,3879.1,3878.7,0.4546]
[1761923526186,3.2078,3878.9,3878.7,0.4546]
[1761923527403,8.2781184,3879.1,3878.7,0.4546]
[1761923528291,8.2781184,3879.1,3879.0,0.4546]
[1761923530000,8.2781184,3879.1,3879.0,1.1412]
[1761923530398,3.2078,3880.1,3879.6,0.5165]
[1761923530799,3.2078,3880.1,3879.6,0.51909194]
[1761923532901,3.2078,3880.5,3879.6,3.72689194]
[1761923533203,3.2078,3880.1,3879.6,0.51909194]
[1761923533588,3.2078,3879.7,3879.6,0.51909194]
[1761923533989,3.2078,3880.1,3879.6,0.51909194]
[1761923534393,3.2078,3879.7,3879.6,0.51909194]
[1761923535197,3.2078,3879.7,3879.0,0.4546]
[1761923535402,3.2078,3879.1,3878.7,0.4546]
[1761923535602,10.109,3879.0,3878.7,0.4546]
[1761923535792,10.28965153,3879.0,3878.7,0.4546]
[1761923536394,10.29220652,3879.0,3878.7,0.00298467]
[1761923536794,10.29220652,3879.0,3878.4,0.5165]
[1761923536999,3.2078,3878.5,3878.4,0.5165]
[1761923537300,13.3138,3878.5,3878.4,0.5165]
[1761923537801,3.2078,3878.5,3878.4,0.51851796]
[1761923538003,13.2988,3878.5,3878.4,0.51851796]
[1761923538198,3.2078,3878.5,3878.4,0.51851796]
[1761923538500,3.2078,3878.6,3878.4,0.51851796]
[1761923539198,3.2078,3878.6,3878.5,0.81]
[1761923539506,0.00255499,3879.0,3878.4,0.51851796]
[1761923540001,3.2078,3878.7,3878.4,0.51851796]
[1761923540503,0.00255499,3879.0,3878.4,0.51851796]
[1761923541095,0.00255499,3879.0,3878.9,0.81]
[1761923542904,0.00255499,3879.0,3878.4,0.51851796]
[1761923544501,3.2078,3878.8,3878.4,0.51851796]
[1761923547001,10.079,3878.7,3878.4,0.51851796]
[1761923550199,3.2078,3878.8,3878.4,0.51851796]
[1761923550405,10.079,3878.7,3878.4,0.51851796]
[1761923551110,3.2078,3878.8,3878.4,0.51851796]
[1761923552210,10.078,3878.7,3878.4,0.51851796]
[1761923554612,3.2078,3878.8,3878.4,0.51851796]
[1761923554813,10.078,3878.7,3878.4,0.51851796]
[1761923560527,0.5672843,3878.6,3878.4,0.51851796]
[1761923560730,0.5672843,3878.5,3878.4,0.51851796]
[1761923560929,0.5672843,3878.6,3878.4,0.51851796]
[1761923561130,0.5672843,3878.5,3878.4,0.51851796]
[1761923561424,0.5672843,3878.6,3878.4,0.51851796]
[1761923561625,0.5672843,3878.5,3878.4,0.51851796]
[1761923562028,0.5672843,3878.6,3878.4,0.51851796]
[1761923562331,0.5672843,3878.5,3878.4,0.51851796]
[1761923562727,3.2078,3878.8,3878.4,0.51851796]
[1761923563229,10.074,3878.7,3878.4,0.51851796]
[1761923563629,0.56781634,3878.6,3878.4,0.51851796]
[1761923563824,3.2078,3878.8,3878.4,0.51851796]
[1761923564126,10.64183363,3878.7,3878.4,0.51851796]
[1761923564431,0.56783363,3878.6,3878.4,0.51851796]
[1761923564727,0.56783363,3878.5,3878.4,0.51851796]
[1761923564928,0.56783363,3878.6,3878.4,0.51851796]
[1761923566123,10.073,3878.5,3878.4,0.51851796]
[1761923566322,10.64083363,3878.5,3878.4,0.51851796]
[1761923567730,10.63983363,3878.5,3878.4,0.51851796]
[1761923568227,0.56783363,3878.5,3878.4,1.26351796]
[1761923568434,10.071,3878.5,3878.4,0.51851796]
[1761923568619,10.63883363,3878.5,3878.4,0.51851796]
[1761923569424,10.63883363,3878.5,3878.0,0.4546]
[1761923569622,3.2078,3878.1,3877.5,0.44088204]
[1761923569820,3.2078,3877.6,3877.5,0.44088204]
[1761923570031,13.84563363,3877.6,3877.5,0.44088204]
[1761923570734,13.84563363,3877.6,3877.5,0.44394154]
[1761923572034,13.84463363,3877.6,3877.5,1.18894154]
[1761923572229,3.2078,3877.6,3877.5,1.18894154]
[1761923572424,3.2078,3877.6,3877.5,0.44394154]
[1761923572630,3.2078,3877.6,3877.5,1.18894154]
[1761923573334,3.2078,3877.6,3877.5,0.44394154]
[1761923573534,3.2078,3877.6,3877.5,1.18894154]
[1761923573832,10.069,3877.7,3877.6,0.745]
[1761923574230,10.069,3877.7,3877.5,0.44394154]
[1761923574529,3.2078,3877.9,3877.5,0.44394154]
[1761923574736,3.2078,3877.9,3877.8,0.745]
[1761923575032,3.2078,3878.3,3877.8,0.745]
[1761923575234,0.56854536,3878.2,3878.1,0.745]
[1761923575628,0.56854536,3878.2,3877.5,0.44394154]
[1761923575934,3.2078,3877.6,3877.5,0.44394154]
[1761923576230,13.84334536,3877.6,3877.5,0.44394154]
[1761923577223,13.2748,3877.6,3877.5,0.44394154]
[1761923577528,14.02482082,3877.6,3877.5,0.44394154]
[1761923577731,14.02482082,3877.6,3877.2,0.5165]
[1761923578029,0.56853362,3877.5,3877.2,0.5165]
[1761923578425,5.68337902,3877.4,3876.6,0.4314]
[1761923578631,3.2078,3876.7,3876.6,0.43394413]
[1761923578930,13.84133362,3876.7,3876.6,0.43394413]
[1761923579530,3.77633362,3876.7,3876.6,0.43394413]
[1761923580235,3.2078,3876.7,3876.6,0.43394413]
[1761923580635,3.77540032,3876.7,3876.6,0.00254413]
[1761923580838,3.77540032,3876.7,3875.4,0.4314]
[1761923580839,5.16477934,3876.7,3875.4,0.4314]
[1761923581042,3.2078,3876.1,3875.4,0.4314]
[1761923581350,13.83840032,3876.1,3875.4,0.4314]
[1761923581642,21.83840032,3876.1,3875.4,0.4314]
[1761923581827,0.0022108,3876.1,3876.0,0.43335679]
[1761923582030,3.2100108,3876.1,3876.0,0.43335679]
[1761923582430,3.2100108,3876.1,3876.0,1.17835679]
[1761923582637,3.2100108,3876.1,3876.0,0.43335679]
[1761923583938,3.2100108,3876.1,3876.0,1.17835679]
[1761923584129,3.2100108,3876.1,3876.0,0.43335679]
[1761923584736,3.7761953,3876.1,3876.0,0.4314]
[1761923585131,3.7761953,3876.1,3875.4,0.4314]
[1761923585328,0.0022108,3876.1,3876.0,0.4314]
[1761923585532,13.2720108,3876.1,3876.0,0.4314]
[1761923585731,13.83784476,3876.1,3876.0,0.4314]
[1761923586038,13.83784476,3876.1,3876.0,0.43403576]
[1761923586039,21.83784476,3876.1,3876.0,0.43403576]
[1761923586638,21.83784476,3876.1,3876.0,0.00263576]
[1761923586844,13.83784476,3876.1,3875.4,0.4314]
[1761923587043,3.2078,3875.5,3875.4,0.4314]
[1761923587248,13.2688,3875.5,3875.4,0.4314]
[1761923587737,3.2078,3875.5,3875.4,0.43443595]
[1761923591956,12.7268,3875.5,3875.4,0.43443595]
[1761923592144,3.2078,3875.5,3875.4,0.43443595]
[1761923592344,13.2658,3875.5,3875.4,0.43443595]
[1761923593143,3.2078,3875.5,3875.4,0.43443595]
[1761923593344,13.2658,3875.5,3875.4,0.43443595]
[1761923594147,3.2078,3875.5,3875.4,0.43443595]
[1761923597150,13.2628,3875.5,3875.4,0.43443595]
[1761923597648,3.2078,3875.5,3875.4,0.43443595]
[1761923597949,13.2618,3875.5,3875.4,0.43443595]
[1761923598349,3.2078,3875.5,3875.4,1.18383595]
[1761923598648,3.2078,3875.9,3875.8,0.7494]
[1761923599848,10.0552108,3876.1,3876.0,1.1577]
[1761923599849,0.0022108,3876.1,3876.0,1.1577]
[1761923604046,0.0022108,3876.1,3876.0,0.4083]
[1761923606349,0.57103989,3876.1,3876.0,0.4083]
[1761923608351,0.57103989,3876.1,3876.0,0.4093]
[1761923608952,4.86503989,3876.1,3876.0,0.4093]
[1761923609252,0.57103989,3876.1,3876.0,0.4093]
[1761923609953,24.15626405,3875.0,3874.9,0.6898]
[1761923610256,19.84366405,3875.0,3874.9,0.6898]
[1761923610954,19.84366405,3875.0,3874.9,0.69306805]
[1761923611652,19.84366405,3875.0,3874.9,0.00326805]
[1761923611653,24.15436405,3875.0,3874.9,0.00326805]
[1761923612154,24.91530653,3875.0,3874.9,0.00326805]
[1761923612655,24.72409631,3875.0,3874.9,0.00326805]
[1761923613355,24.91294753,3875.0,3874.9,0.00326805]
[1761923613746,24.72409631,3875.0,3874.9,0.00326805]
[1761923615453,23.62119631,3875.0,3874.9,0.69306805]
[1761923615950,23.05146405,3875.0,3874.9,0.69306805]
[1761923616155,24.72375858,3875.0,3874.9,0.00326805]
[1761923618754,0.6972,3874.8,3873.0,0.4093]
[1761923618950,3.2078,3873.6,3873.0,0.4093]
[1761923619146,10.03,3873.5,3873.0,0.4093]
[1761923619346,10.03,3873.5,3873.4,0.7763]
[1761923619555,10.7348,3873.5,3873.4,0.00311893]
[1761923619752,11.1955,3873.5,3873.4,0.00311893]
[1761923619949,11.76882154,3873.5,3873.4,0.00311893]
[1761923620557,11.76882154,3873.5,3872.0,0.2756]
[1761923620753,3.2078,3872.4,3871.8,3.2078]
[1761923620954,13.2358,3872.4,3871.5,0.4093]
[1761923621448,13.23834858,3872.4,3871.5,0.41192244]
[1761923621762,3.2078,3872.0,3871.5,0.41192244]
[1761923621952,13.2348,3872.0,3871.5,0.41192244]
[1761923622153,3.2078,3872.0,3871.9,0.7763]
[1761923622348,0.00254858,3872.4,3872.3,0.7763]
[1761923623261,5.061,3873.2,3873.1,0.7763]
[1761923623456,3.2078,3873.4,3872.4,0.4285]
[1761923623756,3.2078,3873.4,3872.5,3.2078]
[1761923624057,3.2078,3873.4,3873.3,0.7763]
[1761923624261,3.21050557,3873.4,3873.3,0.7763]
[1761923624958,0.00270557,3873.4,3873.3,0.7763]
[1761923625554,3.21050557,3873.4,3873.3,0.7763]
[1761923625755,3.21050557,3873.4,3873.0,0.4285]
[1761923626158,3.21050557,3873.4,3872.4,0.4285]
[1761923626356,3.21050557,3873.4,3872.0,0.3912]
[1761923626552,3.2078,3873.1,3872.6,0.7763]
[1761923627060,0.00270557,3873.4,3873.0,0.7763]
[1761923627570,0.00270557,3873.4,3873.3,0.7763]
[1761923629057,3.2078,3874.7,3873.3,0.7763]
[1761923629262,3.2078,3874.3,3873.3,0.7763]
[1761923629656,3.2078,3873.9,3873.3,0.7763]
[1761923629855,3.2078,3873.9,3873.8,0.7763]
[1761923630365,0.00323353,3873.9,3873.8,0.7763]
[1761923630564,3.21103353,3873.9,3873.5,0.4258]
[1761923630761,3.21103353,3873.9,3873.8,0.7763]
[1761923631065,0.00323353,3873.9,3873.8,0.7763]
[1761923631266,3.21103353,3873.9,3873.0,0.4285]
[1761923631666,0.00323353,3873.9,3873.0,0.4285]
[1761923631869,3.21103353,3873.9,3873.0,0.4285]
[1761923632362,3.2078,3873.4,3872.7,3.2078]
[1761923632554,3.21103353,3873.9,3873.3,0.7763]
[1761923632763,3.2078,3873.5,3873.3,0.7763]
[1761923632959,3.2078,3873.5,3872.7,3.2078]
[1761923634859,3.21103353,3873.9,3872.7,3.2078]
[1761923635069,0.00323353,3873.9,3873.2,3.2078]
[1761923635464,3.21103353,3873.9,3873.2,3.2078]
[1761923635863,3.2078,3873.8,3873.2,3.2078]
[1761923636265,0.00323353,3873.9,3873.2,3.2078]
[1761923636567,0.00323353,3873.9,3873.8,0.7763]
[1761923641670,0.00323353,3873.9,3873.8,1.24121]
[1761923641974,3.2078,3874.9,3873.9,0.46489]
[1761923642173,3.2078,3874.9,3874.2,3.2078]
[1761923642469,3.2078,3874.9,3874.0,0.4252]
[1761923642862,3.6685,3874.5,3873.8,3.2078]
[1761923643673,0.4607,3874.5,3873.8,3.2078]
[1761923644776,3.21113048,3874.9,3873.8,3.2078]
[1761923644982,3.21113048,3874.9,3874.8,0.7763]
[1761923645275,0.00333048,3874.9,3874.8,0.77826599]
[1761923646074,13.90993048,3874.9,3874.8,0.00196599]
[1761923646273,14.48255604,3874.9,3873.7,3.2078]
[1761923646475,3.6685,3874.5,3873.7,3.2078]
[1761923647272,3.6685,3874.5,3873.7,3.21050685]
[1761923648381,0.7048,3873.8,3873.7,3.21050685]
[1761923648578,3.9126,3873.8,3873.7,0.00270685]
[1761923649978,4.48563332,3873.8,3873.7,0.00270685]
[1761923650195,12.48563332,3873.8,3871.7,3.2078]
[1761923650396,0.2545,3872.5,3871.7,3.2078]
[1761923651092,0.2545,3872.5,3871.7,3.21038169]
[1761923654893,4.998,3872.7,3872.5,0.6941]
[1761923655196,9.983,3872.9,3871.7,3.21038169]
[1761923655793,9.983,3872.9,3872.1,3.2078]
[1761923655992,13.1908,3873.4,3872.9,0.6941]
[1761923656198,3.2078,3873.4,3872.9,0.6941]
[1761923656495,3.2078,3873.4,3872.5,0.4067]
[1761923657096,3.2078,3873.4,3872.5,3.6145]
[1761923658691,3.2078,3873.8,3873.3,0.6941]
[1761923658999,3.2078,3873.8,3873.3,3.9019]
[1761923659401,3.2078,3873.8,3873.3,0.6941]
[1761923662502,3.2078,3873.8,3873.0,0.2522]
[1761923664196,3.2078,3873.8,3873.0,0.7172]
[1761923664399,3.2078,3873.8,3873.0,0.2522]
[1761923665799,3.2078,3874.3,3873.3,3.2078]
[1761923668306,3.2078,3873.9,3873.3,3.2078]
[1761923670306,0.6196,3873.4,3873.3,3.2078]
[1761923670504,0.6196,3873.4,3872.5,3.6145]
[1761923670505,3.8274,3873.4,3872.5,3.6145]
[1761923670809,3.8274,3873.4,3872.5,0.4067]
[1761923671906,3.8274,3873.4,3872.5,3.6145]
[1761923674407,3.2078,3873.4,3873.3,0.6211]
[1761923674709,3.2078,3873.4,3873.0,0.1169]
[1761923674710,3.2078,3874.0,3873.9,0.6211]
[1761923675203,3.2078,3874.5,3874.0,0.3933]
[1761923675507,3.21113048,3874.9,3874.4,0.6211]
[1761923675712,3.21113048,3874.9,3874.0,0.3933]
[1761923676112,3.21113048,3874.9,3873.5,3.6011]
[1761923676113,0.57365878,3874.8,3873.5,3.6011]
[1761923676411,3.21113048,3874.9,3874.0,0.3933]
[1761923677416,13.16213048,3874.9,3874.0,0.3933]
[1761923678104,13.16113048,3874.9,3874.0,0.3933]
[1761923679208,3.21113048,3874.9,3874.0,0.3933]
[1761923680011,3.21113048,3874.9,3874.0,0.85818]
[1761923680514,3.21113048,3874.9,3874.0,0.3933]
[1761923681413,3.21113048,3874.9,3874.0,0.85818]
[1761923681616,3.21113048,3874.9,3874.0,0.3933]
[1761923682608,0.00333048,3874.9,3874.8,0.6134]
[1761923683107,0.61033048,3874.9,3874.3,3.2078]
[1761923685215,0.00333048,3874.9,3874.8,0.6134]
[1761923687713,0.00333048,3874.9,3874.5,0.349]
[1761923688113,0.00333048,3874.9,3874.8,0.6134]
[1761923690812,0.00333048,3874.9,3874.8,1.07819]
[1761923691115,0.00333048,3874.9,3874.8,0.6134]
[1761923691921,0.00333048,3874.9,3874.8,1.07819]
[1761923692416,0.00333048,3874.9,3874.8,0.6134]
[1761923693112,0.00333048,3874.9,3874.8,1.07819]
[1761923693421,2.30973928,3875.0,3874.9,1.07818]
[1761923693616,1.24368301,3875.0,3874.9,1.07818]
[1761923693816,1.24368301,3875.0,3874.9,0.6134]
[1761923694016,1.24368301,3875.0,3874.9,1.07818]
[1761923694515,1.24551364,3875.0,3874.9,1.07818]
[1761923694717,1.24551364,3875.0,3874.9,0.6134]
[1761923695118,0.607,3874.4,3874.3,0.00317245]
[1761923696908,0.3437,3874.5,3874.3,0.00317245]
[1761923698211,0.3437,3874.5,3874.3,0.46802245]
[1761923698416,1.24551364,3875.0,3874.6,0.46481]
[1761923698714,1.24551364,3875.0,3874.3,1.36773824]
[1761923698715,1.24551364,3875.0,3874.9,3.2078]
[1761923699217,1.24551364,3875.0,3874.9,4.57236579]
[1761923699919,1.24551364,3875.0,3874.9,3.2078]
[1761923700222,0.3437,3875.5,3875.4,0.46472]
[1761923700523,0.39,3876.0,3875.7,0.46468]
[1761923700719,0.39,3876.0,3875.9,3.2078]
[1761923701110,0.607,3875.6,3875.5,3.2078]
[1761923701310,0.3437,3875.0,3874.8,0.46479]
[1761923701513,0.3437,3875.0,3874.9,3.2078]
[1761923702017,0.3437,3875.5,3875.4,0.46472]
[1761923702218,0.3437,3875.5,3875.4,3.67252]
[1761923702415,0.39,3876.0,3875.8,0.46467]
[1761923702622,0.39,3876.0,3875.9,3.2078]
[1761923702814,0.3437,3876.5,3875.9,3.2078]
[1761923703121,0.3437,3876.5,3875.8,1.83255456]
[1761923703122,0.3437,3877.0,3876.8,0.46454]
[1761923703318,0.3437,3877.0,3876.9,3.2078]
[1761923705914,0.34645949,3877.0,3876.9,3.2078]
[1761923708524,0.3437,3877.5,3876.9,3.2078]
[1761923708525,0.3437,3877.5,3877.2,0.4645]
[1761923708716,0.3437,3877.5,3877.3,3.67229]
[1761923709224,0.3437,3877.5,3877.3,3.2078]
[1761923709515,0.5066,3877.0,3876.9,3.2078]
[1761923710211,0.50842332,3877.0,3876.9,3.2106242]
[1761923710811,0.3437,3877.5,3876.9,3.2106242]
[1761923711011,0.3437,3877.5,3877.4,3.2078]
[1761923711923,0.34641868,3877.5,3877.4,3.2078]
[1761923712318,1.868e-05,3877.5,3877.4,13.0998]
[1761923713119,1.868e-05,3877.5,3877.4,21.0998]
[1761923713529,0.53801868,3877.5,3877.4,3.2078]
[1761923713840,0.53801868,3877.5,3877.4,13.0968]
[1761923714921,1.43101868,3877.5,3877.4,3.2078]
[1761923715119,0.538,3877.0,3876.9,0.0028242]
[1761923715315,0.538,3877.0,3876.9,3.2106242]
[1761923716025,1.868e-05,3877.5,3877.4,0.46448]
[1761923716236,1.868e-05,3877.5,3877.4,13.0938]
[1761923716535,1.868e-05,3877.5,3877.4,21.0938]
[1761923717329,1.868e-05,3877.5,3877.4,13.0938]
[1761923717825,1.868e-05,3877.5,3877.4,13.0908]
[1761923718428,1.868e-05,3877.5,3877.4,14.45868456]
[1761923719130,1.868e-05,3877.5,3877.4,13.0908]
[1761923719430,1.868e-05,3877.5,3877.4,13.0888]
[1761923720931,1.868e-05,3877.5,3877.4,13.0858]
[1761923721432,1.868e-05,3877.5,3877.4,13.0848]
[1761923722532,1.868e-05,3877.5,3877.4,13.54828]
[1761923722927,1.868e-05,3877.5,3877.4,3.2078]
[1761923723126,0.82871868,3877.5,3877.4,3.2078]
[1761923723732,0.5114,3877.2,3877.1,6.932]
[1761923723934,0.5114,3877.2,3876.9,3.2106242]
[1761923724133,0.5114,3877.2,3877.0,9.874]
[1761923724431,0.5114,3877.2,3877.1,0.46451]
[1761923725632,0.5114,3877.2,3877.1,9.873]
[1761923726321,0.5114,3877.2,3877.1,9.872]
[1761923726525,0.5114,3877.2,3876.9,3.2106242]
[1761923726725,0.5114,3877.2,3877.0,9.871]
[1761923727437,0.5114,3877.2,3876.9,3.2106242]
[1761923727636,0.5114,3877.2,3876.9,10.2296242]
[1761923729539,0.5114,3877.2,3876.9,10.6941642]
[1761923729832,0.5114,3877.2,3876.9,10.2296242]
[1761923731036,0.5114,3877.2,3876.9,3.2106242]
[1761923731230,0.5114,3877.2,3877.0,9.865]
[1761923733230,0.5114,3877.2,3877.0,10.32953]
[1761923733538,0.5114,3877.2,3877.0,9.865]
[1761923733737,0.8287,3877.0,3876.9,3.2106242]
[1761923733938,0.8287,3877.0,3876.9,13.0726242]
[1761923734739,0.8287,3877.0,3876.9,3.2106242]
[1761923735038,0.8287,3877.0,3876.9,0.0028242]
[1761923735839,1.3401,3876.6,3876.5,3.5544817]
[1761923736941,1.3401,3876.6,3876.5,3.55732048]
[1761923737137,0.5114,3876.6,3876.5,3.55732048]
[1761923738728,1.3401,3876.6,3876.5,3.55732048]
[1761923739441,0.5114,3876.6,3876.5,3.55732048]
[1761923740233,0.5114,3877.2,3876.5,3.55732048]